Cogmind - Beta 11.1 @@@ ROGUE MODE // 2022.06.28 @ 00:41:00 Player: Jezoensis Result: Destroyed by as-56272 with Assembled F-torch Performance ------------- Evolutions (0) 0 Regions Visited (2) 400 Robots Destroyed (12) 60 Value Destroyed (89) 89 Prototype IDs (3) 60 Alien Tech Used (0) 0 Bonus (0) 0 TOTAL SCORE: 609 Bonus ------- None Cogmind --------- Core Integrity 0/250 Matter 147/300 Energy 248/250 System Corruption 0% Temperature Cool (20) Movement Treading (160) Location -10/Mines Parts ------- > --- POWER (1) -------- Ion Engine > --- PROPULSION (2) --- Light Treads Light Treads > --- UTILITY (2) ------ Large Storage Unit Improved Terrain Scanner > --- WEAPON (2) ------- Assault Rifle Light Assault Rifle > --- INVENTORY (15) --- Light Treads Wheel Wheel Wheel High-capacity Storage Unit Huge Storage Unit High-capacity Matter Pod (14) Visual Processing Unit Light Assault Rifle Mining Laser Peak State ------------ > --- POWER ------------ Ion Engine > --- PROPULSION ------- Wheel Wheel > --- UTILITY ---------- Medium Storage Unit Improved Terrain Scanner > --- WEAPON ----------- Assault Rifle Assault Rifle > --- INVENTORY -------- Light Treads Light Treads Light Treads Light Treads Wheel Compact Wheel High-capacity Storage Unit Sensor Array Assault Rifle Mining Laser [Rating: 10] Favorites ----------- Power Ion Engine Engine Ion Engine Propulsion Wheel Treads Light Treads Wheel Wheel Utility Improved Terrain Scanner Device Improved Terrain Scanner Storage Large Storage Unit Processor Transport Network Coupler Weapon Assault Rifle Ballistic Gun Assault Rifle Special Weapon Mining Laser Build | -11 -10 -10 ------- Run | Scr Mat Min Slots Evolved . | . . . Power . | . . . Propulsion . | . . . Utility . | . . . Weapon . | . . . Parts Attached 28 | 8 9 11 Power 2 | 1 1 . Engine 2 | 1 1 . Core . | . . . Reactor . | . . . Propulsion 11 | 3 1 7 Treads 5 | . . 5 Leg . | . . . Wheel 6 | 3 1 2 Hover . | . . . Flight . | . . . Utility 9 | 2 5 2 Device 4 | 1 1 2 Storage 4 | 1 3 . Processor 1 | . 1 . Hackware . | . . . Protection . | . . . Artifact . | . . . Weapon 6 | 2 2 2 Energy Gun . | . . . Energy Cannon . | . . . Ballistic Gun 5 | 2 1 2 Ballistic Cannon . | . . . Launcher . | . . . Special Weapon 1 | . 1 . Impact Weapon . | . . . Slashing Weapon . | . . . Piercing Weapon . | . . . Special Melee Weapon . | . . . Unidentified Prototypes . | . . . Parts Lost 6 | . . 6 Power . | . . . Propulsion 3 | . . 3 Utility 1 | . . 1 Weapon 2 | . . 2 Highest Loss Streak 6 | . . 6 To Critical Strikes . | . . . Average Slot Usage (%) 99 | . 99 97 Engine 14 | . 14 14 Treads 2 | . . 9 Wheel 25 | . 28 18 Device 13 | . 13 11 Storage 14 | . 14 14 Ballistic Gun 26 | . 26 28 Special Weapon 1 | . 1 . Naked Turns . | . . . Heaviest Build 50 | 13 50 30 Greatest Support 40 | 26 26 40 Greatest Overweight (x) 1 | . 1 1 Average Overweight (x) . | . . . Largest Inventory Capacity 20 | 8 20 15 Average Capacity 14 | 7 15 15 Most Carried 18 | 8 18 15 Average Carried 11 | 4 13 11 Final Capacity 15 | 8 15 15 Final Carried 15 | 8 15 10 Class Distribution -------------------- 100% | Mutant Dominant Class ---------------- Mutant | -10/Materials Mutant | -10/Mines Resources | -11 -10 -10 ----------- Run | Scr Mat Min Matter Collected 620 | 370 180 70 Remotely . | . . . Salvage Created 479 | 179 218 82 Parts 25 | 11 14 . Haulers Intercepted 1 | . 1 . Recyclers Shooed 2 | 1 1 . Parts Field Recycled . | . . . Retrieved Matter . | . . . Parts Self-Destructed . | . . . Prevented . | . . . Kills | -11 -10 -10 ------- Run | Scr Mat Min Combat Hostiles Destroyed 8 | . 3 5 Guns 8 | . 3 5 Classes Destroyed 7 | 2 4 1 Worker 1 | . 1 . Tunneler 4 | 4 . . Hauler 1 | . 1 . Recycler 2 | 1 1 . Watcher 1 | . 1 . Swarmer 3 | . 3 . Assembled 5 | . . 5 Best Kill Streak 4 | 4 3 3 Combat Bots Only 3 | . 3 3 Max Kills in Single Turn 1 | 1 1 1 Gunslinging . | . . . Exploded . | . . . Melee . | . . . Uniques/NPCs Destroyed . | . . . Combat | -11 -10 -10 -------- Run | Scr Mat Min Damage Taken 1124 | . 136 988 Core 259 | . 33 226 Absorbed by Shields . | . . . Core Remaining (%) 100 | 100 . . Volleys Fired 58 | 15 24 19 Largest 2 | 2 2 2 Hottest 100 | 40 100 40 Shots Fired 111 | 30 43 38 Gun 106 | 30 38 38 Cannon . | . . . Launcher . | . . . Special 5 | . 5 . Kinetic 106 | 30 38 38 Thermal 5 | . 5 . Explosive . | . . . Electromagnetic . | . . . Robot Hit Streak 8 | 7 8 6 Robot Miss Streak 4 | 4 3 2 Penetration Max . | . . . Secondary Targets 2 | . 1 1 Max Gunslinging Chain 1 | . 1 1 Shots Hit Robots 64 | 17 24 23 Core Hits 25 | 6 10 9 Critical Kills 1 | . 1 . Critical Parts Destroyed 1 | 1 . . Critical Strikes 2 | 1 1 . Destroy 2 | 1 1 . Melee Attacks . | . . . Impact . | . . . Slashing . | . . . Piercing . | . . . Sneak Attacks . | . . . Combat Hostiles . | . . . Follow-up Attacks . | . . . Damage Inflicted 844 | 212 343 289 Guns 822 | 212 321 289 Cannons . | . . . Explosions . | . . . Melee . | . . . Ramming 22 | . 22 . Kinetic 822 | 212 321 289 Thermal . | . . . Explosive . | . . . Electromagnetic . | . . . Impact . | . . . Slashing . | . . . Piercing . | . . . Highest Corruption . | . . . Average Corruption . | . . . Corruption Purged . | . . . Corruption Blocked . | . . . Overload Shots . | . . . Overflow Damage . | . . . Projectiles . | . . . Explosions . | . . . Melee . | . . . Knockbacks . | . . . Impact . | . . . Kinetic . | . . . Secondary . | . . . Self-Inflicted Damage 10 | . 10 . Shots . | . . . Rammed 2 | . 2 . Targets Rammed 2 | . 2 . Kicked . | . . . Crushed . | . . . Highest Temperature 40 | . 40 20 Average Temperature 17 | . 20 13 Received Heat Transfer 340 | . . 340 Siege Activations . | . . . Robots Corrupted . | . . . Combat Hostiles . | . . . Parts Fried . | . . . Impact Corruptions . | . . . Robots Melted . | . . . Combat Hostiles . | . . . Parts Melted . | . . . Heat Transferred . | . . . Parts Sabotaged . | . . . Parts Stolen . | . . . Parts Stripped . | . . . Power Chain Reactions . | . . . Missiles Intercepted . | . . . Alert | -11 -10 -10 ------- Run | Scr Mat Min Peak Influence 194 | 25 194 . Initial 16 | . 16 . Average 37 | 11 54 . Maximum Alert Level . | . . . Low Security (%) 100 | 100 100 100 Level 1 . | . . . Level 2 . | . . . Level 3 . | . . . Level 4 . | . . . Level 5 . | . . . High Security . | . . . Max Security . | . . . Squads Dispatched 1 | . 1 . Investigation . | . . . Extermination . | . . . Reinforcement 1 | . 1 . Assault . | . . . Garrison . | . . . Intercept . | . . . Searches Triggered . | . . . Construction Impeded . | . . . Haulers Reinforced . | . . . Active Scanning Responses . | . . . Cargo Convoy Interrupts . | . . . Stealth | -11 -10 -10 --------- Run | Scr Mat Min Distress Signals 2 | . . 2 Communications Jammed . | . . . Distress Signals . | . . . Times Spotted 13 | . 6 7 Peak Tracking Total 6 | . 6 4 Tactical Retreats 2 | . 2 . Traps | -11 -10 -10 ------- Run | Scr Mat Min Traps Triggered . | . . . Indirectly . | . . . Trap Hack Attempts . | . . . Triggered . | . . . Disarmed . | . . . Reprogrammed . | . . . Reused . | . . . Traps Extracted . | . . . Installed . | . . . Triggered . | . . . Machines | -11 -10 -10 ---------- Run | Scr Mat Min Machines Disabled . | . . . Max in Single Turn . | . . . Machines Sabotaged . | . . . Garrisons Compromised . | . . . Overloaded Fab Kills . | . . . Hacking | -11 -10 -10 --------- Run | Scr Mat Min Machines Accessed 3 | . 3 . Terminals 3 | . 3 . Fabricators . | . . . Repair Stations . | . . . Recycling Units . | . . . Scanalyzers . | . . . Garrison Access . | . . . Total Hacks 14 | . 14 . Successful 8 | . 8 . Failed 5 | . 5 . Catastrophic . | . . . Database Lockouts 1 | . 1 . Manual 5 | . 5 . Terminals 14 | . 14 . Fabricators . | . . . Repair Stations . | . . . Recycling Units . | . . . Scanalyzers . | . . . Garrison Access . | . . . Terminal Hacks 6 | . 6 . Robot Analysis 1 | . 1 . Prototype ID Bank 2 | . 2 . Branch Access Points 1 | . 1 . Unreport Threat 1 | . 1 . Locate Traps 1 | . 1 . Fabricator Hacks . | . . . Repair Station Hacks . | . . . Recycling Unit Hacks . | . . . Scanalyzer . | . . . Garrison Access Hacks . | . . . Unauthorized Hacks 2 | . 2 . Terminals 2 | . 2 . Track 1 | . 1 . Botnet 1 | . 1 . Fabricators . | . . . Repair Stations . | . . . Recycling Units . | . . . Scanalyzers . | . . . Garrison Access . | . . . Data Cores Recovered . | . . . Used . | . . . Hacking Detections 3 | . 3 . Full Trace Events . | . . . Feedback Events . | . . . Feedback Blocked . | . . . Robot Schematics Acquired . | . . . Robots Built . | . . . Authchips . | . . . Time . | . . . Total Robot Build Rating . | . . . Part Schematics Acquired . | . . . Parts Built . | . . . Authchips . | . . . Time . | . . . Total Part Build Rating . | . . . Parts Repaired . | . . . Time . | . . . Parts Recycled . | . . . Recycled Matter . | . . . Retrieved Matter . | . . . Retrieved Components . | . . . Parts Scanalyzed . | . . . Part Schematics Acquired . | . . . Parts Damaged . | . . . Bothacking | -11 -10 -10 ------------ Run | Scr Mat Min Used RIF Installer . | . . . Robots Hacked . | . . . Non-combat . | . . . Combat . | . . . Robot Hacks Applied . | . . . Relay Couplers Released . | . . . Fabnet Peak Effective % . | . . . Robots Rewired . | . . . Allies Hacked . | . . . Hacks Repelled . | . . . Allies | -11 -10 -10 -------- Run | Scr Mat Min Total Allies . | . . . Largest Group . | . . . Highest-Rated Group . | . . . Highest-Rated Ally . | . . . Total Orders . | . . . Ally Attacks . | . . . Total Damage . | . . . Kills . | . . . Allies Corrupted . | . . . Allies Melted . | . . . Intel | -11 -10 -10 ------- Run | Scr Mat Min Robot Analysis Total 1 | . 1 . Derelict Logs Recovered . | . . . Drone Launches . | . . . Drone Recoveries . | . . . Exploration | -11 -10 -10 ------------- Run | Scr Mat Min Turns Passed 663 | 114 429 120 Spaces Moved 419 | 65 317 37 Core 17 | 17 . . Treads 1 | . . 1 Legs . | . . . Wheels 401 | 48 317 36 Hover . | . . . Flight . | . . . Fastest Speed 50 | 50 80 95 Average Speed 96 | 74 101 97 Slowest Speed 160 | 90 105 160 Overloaded Moves . | . . . Propulsion Burnouts . | . . . Robots Hopped . | . . . Cave-ins Triggered . | . . . Exploration Rate (%) 21 | 4 55 6 Regions Visited 2 Branch Regions 1 Pre-discovered Areas . | . . . Known Exits Taken 1 | . 1 . Unknown Exits Taken 1 | 1 . . Scrap Searched . | . . . Spaces Dug 5 | . 5 . Terrain Destroyed 5 | . 5 . Melee . | . . . Projectile 5 | . 5 . AOE . | . . . Terrain Rammed . | . . . Walls Destroyed . | . . . Machines Disabled . | . . . Actions | -11 -10 -10 --------- Run | Scr Mat Min Total 560 | 98 377 85 Wait 17 | . . 17 Move 417 | 64 316 37 Hop . | . . . Pick Up 26 | 10 15 1 Fast Attach 6 | 5 1 . Attach 10 | 3 1 6 Detach 3 | 1 2 . Swap 12 | . 7 5 Drop 9 | . 9 . Fire 58 | 15 24 19 Melee . | . . . Ram 2 | . 2 . Kick . | . . . Crush . | . . . Escape Stasis . | . . . Rewire . | . . . Trap . | . . . Miscellaneous . | . . . Route ------- -11/Scrapyard -10/Materials (discovered 2 exits: *Min x2) -10/Mines History --------- Turn | Location | Event 15 | -11/Scrapyard | Discovered new exit (range 16) 115 | -11/Scrapyard | Entered Materials 294 | -10/Materials | Discovered new exit (range 15) 327 | -10/Materials | Build established: Mutant 373 | -10/Materials | Central database locked down 373 | -10/Materials | Identified exit to Mines 544 | -10/Materials | Entered Mines 545 | -10/Mines | Assembled infested the area 575 | -10/Mines | Core integrity fell below 50% 585 | -10/Mines | Core integrity fell below 20% 624 | -10/Mines | Lost 6 parts (3n1u2w) 664 | -10/Mines | Destroyed by as-56272 with Assembled F-torch Last Messages --------------- 00560_ K-01 Serf destroyed. 00574_ Assault Rifle destroyed. 00574_ Wheel destroyed. 00581_ as-52957 destroyed. 00584_ Assault Rifle destroyed. 00591_ Com. Wheel destroyed. 00592_ Lgt. Treads destroyed. 00593_ Sensor Array destroyed. 00604_ as-57578 destroyed. 00604_ Switching to secondary target: as-78976. 00607_ as-78976 destroyed. 00609_ as-95678 destroyed. 00616_ Acquired 17 matter. 00617_ Acquired 18 matter. 00618_ Acquired 15 matter. 00620_ Acquired 6 matter. 00626_ Acquired 14 matter. 00628_ Acquired Wheel. 00649_ R-06 Scavenger heat spikes uncontrollably. 00664_ as-91945 destroyed. Map ----- +----------------------------------------------------+ | ??????????????????????????????????????? | | ??????????????????????????????????????? | | ??????????????????????????????????????? | | ??????????????????????????????????????? | | ??????????????????????????????????????? | | ??????????????????????????????????????? | | ??????????????????????????????????????? | | ?????????????????????????#????????????? | | ????????????????????????? ????????????? | | ????????????????????????? ????????????? | | ????????????????????????? ????????????? | | ????????????????????????? ????????????? | | ??????????????????????##? ????????????? | | ??????????????????????? # ????????????? | | ????????????????????? ??? ???????#? | | ????????????????????? ? ?? ????? | | ????????????????????? #????? ??????? | | ??????????????????????"" ##???????????? | | ??????????????????????"" #???????????? | | ?????????????????? ????" #???????????? | | ??????????????????????? ##??????????? | | ??????????????#????????# #???????????? | | ??????????????#????????# ##???########? | | ??????????????#????????#a#??#?# #? | | ???????????????????????#a###### #? | | ???????????????????????# @ *% #? | | ???????????????????????# ######% #? | | ???????????????????????# ##???# #? | | ??????#???????#???#???## ##??########? | | ????????????????#?#####" ##??#??????? | | ??????????????????# #?????????? | | ??????????#???#???# #?????????? | | ??????????????????##### ##???#?????? | | ??????????????????????## ##??????????? | | ????????????????????????####??????#???? | | ??????????????????????????????????????? | | ??????????????????#????????#????#?????? | | ??????????????????????????????????????? | | | | | | | | | | | | | | | | | | | | | | | | | +----------------------------------------------------+ Best States ------------- Heat Dissipation 25 Energy Generation 10 Energy Capacity 250 Matter Stores 300 Matter Capacity 300 Sight Range 16 Robot Scan Range 14 Terrain Scan Range 16 Terrain Scan Density 10 Evasion (%) 44 Recoil Reduction 2 Item Schematics ----------------- None Robot Schematics ------------------ None Fabricated ------------ Nothing Alien Tech Used ----------------- None Achievements -------------- None Challenges ------------ None Game ------ Seed ElectronDamperReconfigurator Manual? 0 Play Time 00:13:43 Cumulative 707.5 hours Start 2022.06.28 @ 00:30:01 End 2022.06.28 @ 00:41:00 Sessions 1 Manual Loads 0 Difficulty Rogue Special Mode None Game No. 371 Rogue 244 Adventurer 125 Explorer 2 Win Type - Total 83 Types 72/4/4/1/1/0/0/0/1 Lore% 81 Gallery% 88 Achievement% 76 Wizard Run 0 Options --------- ASCII 0 Keyboard 1 Movement Numpad Keybinds 0 Fullscreen 1 Font 36/TerminusFine Map View 76x50 Tactical HUD 1 Map Filters NONE Filters NONE Steam 1 RUN: 0eb6b022-9e0a-45d8-93d0-0e474185332c